fUST/lending_fUST_20260507
["ID","MTS","AMOUNT","RATE_DAILY","PERIOD"]
[421789610,1778160638000,-500.0,0.0001041,2]
[421789626,1778160638000,-500.0,0.0001041,2]
[421789680,1778160638000,-139.73009838,0.00010958,2]
[421789578,1778160638000,-300.0,8.63e-05,2]
[421789581,1778160638000,-300.0,8.63e-05,2]
[421789574,1778160638000,-35.41986521,8.63e-05,2]
[421789576,1778160638000,-300.0,8.63e-05,2]
[421789583,1778160638000,-300.0,8.63e-05,2]
[421789593,1778160638000,-407.0,9.491e-05,2]
[421789584,1778160638000,-208.82942249,8.63e-05,2]
[421789595,1778160638000,-420.0,9.492e-05,2]
[421789591,1778160638000,-600.0,8.802e-05,2]
[421789587,1778160638000,-91.17057751,8.63e-05,2]
[421789589,1778160638000,-300.0,8.63e-05,2]
[421789597,1778160638000,-420.0,9.492e-05,2]
[421789601,1778160638000,-156.0,9.547e-05,2]
[421789599,1778160638000,-1680.0,9.492e-05,2]
[421789603,1778160638000,-720.0,9.682e-05,2]
[421789605,1778160638000,-300.0,9.712e-05,2]
[421789607,1778160638000,-495.73892339,0.00010293,2]
[421789609,1778160638000,-500.0,0.0001041,2]
[421789613,1778160638000,-500.0,0.0001041,2]
[421789615,1778160638000,-500.0,0.0001041,2]
[421789617,1778160638000,-500.0,0.0001041,2]
[421789618,1778160638000,-500.0,0.0001041,2]
[421789622,1778160638000,-500.0,0.0001041,2]
[421789624,1778160638000,-500.0,0.0001041,2]
[421789620,1778160638000,-500.0,0.0001041,2]
[421789691,1778160638000,-658.75,0.00010958,2]
[421789706,1778160638000,-500.0,0.00010958,2]
[421789696,1778160638000,-858.56,0.00010958,2]
[421789737,1778160638000,-500.0,0.00010958,2]
[421789739,1778160638000,-500.0,0.00010958,2]
[421789741,1778160638000,-15000.0,0.00010959,2]
[421789745,1778160638000,-429443.4125739,0.00011,2]
[421789747,1778160638000,-861.182,0.00011232,2]
[421789751,1778160638000,-500.0,0.00011232,2]
[421789743,1778160638000,-14853.48099007,0.00011,2]
[421789749,1778160638000,-500.0,0.00011232,2]
[421789753,1778160638000,-500.0,0.00011232,2]
[421789757,1778160638000,-500.0,0.00011232,2]
[421789755,1778160638000,-537.87,0.00011232,2]
[421789761,1778160638000,-263.56,0.00011232,2]
[421789735,1778160638000,-500.0,0.00010958,2]
[421789763,1778160638000,-500.0,0.00011232,2]
[421789773,1778160638000,-629.51,0.00011232,2]
[421789769,1778160638000,-187.46882822,0.00011232,2]
[421789777,1778160638000,-5242.08,0.00011232,2]
[421789765,1778160638000,-500.0,0.00011232,2]
[421789775,1778160638000,-500.0,0.00011232,2]
[421789779,1778160638000,-500.0,0.00011232,2]
[421789767,1778160638000,-658.75,0.00011232,2]
[421789783,1778160638000,-4112.05,0.00011232,2]
[421789781,1778160638000,-844.48,0.00011232,2]
[421789785,1778160638000,-2141.53,0.00011232,2]
[421789693,1778160638000,-410.05,0.00010958,2]
[421789787,1778160638000,-659.98,0.00011232,2]
[421789771,1778160638000,-858.56,0.00011232,2]
[421789733,1778160638000,-500.0,0.00010958,2]
[421789759,1778160638000,-500.0,0.00011232,2]
[421789731,1778160638000,-1037.12,0.00010958,2]
[421789694,1778160638000,-247.85,0.00010958,2]
[421789695,1778160638000,-500.0,0.00010958,2]
[421789729,1778160638000,-500.0,0.00010958,2]
[421789689,1778160638000,-500.0,0.00010958,2]
[421789686,1778160638000,-360.26990162,0.00010958,2]
[421789687,1778160638000,-500.0,0.00010958,2]
[421789698,1778160638000,-629.51,0.00010958,2]
[421789699,1778160638000,-500.0,0.00010958,2]
[421789697,1778160638000,-500.0,0.00010958,2]
[421789708,1778160638000,-500.0,0.00010958,2]
[421789710,1778160638000,-500.0,0.00010958,2]
[421789712,1778160638000,-500.0,0.00010958,2]
[421789701,1778160638000,-500.0,0.00010958,2]
[421789700,1778160638000,-5242.08,0.00010958,2]
[421789705,1778160638000,-659.98,0.00010958,2]
[421789728,1778160638000,-500.0,0.00010958,2]
[421789725,1778160638000,-1144.26,0.00010958,2]
[421789703,1778160638000,-4112.05,0.00010958,2]
[421789721,1778160638000,-500.0,0.00010958,2]
[421789720,1778160638000,-500.0,0.00010958,2]
[421789718,1778160638000,-745.8,0.00010958,2]
[421789724,1778160638000,-500.0,0.00010958,2]
[421789714,1778160638000,-500.0,0.00010958,2]
[421789702,1778160638000,-844.48,0.00010958,2]
[421789704,1778160638000,-2141.53,0.00010958,2]
[421789716,1778160638000,-500.0,0.00010958,2]
[421789870,1778160639000,-844.48,0.00011506,2]
[421789872,1778160639000,-4112.05,0.00011506,2]
[421789879,1778160639000,-209.62,0.00011506,2]
[421789877,1778160639000,-659.98,0.00011506,2]
[421789857,1778160639000,-500.0,0.00011506,2]
[421789865,1778160639000,-500.0,0.00011506,2]
[421789863,1778160639000,-629.51,0.00011506,2]
[421789861,1778160639000,-858.56,0.00011506,2]
[421789859,1778160639000,-658.75,0.00011506,2]
[421789869,1778160639000,-500.0,0.00011506,2]
[421789853,1778160639000,-500.0,0.00011506,2]
[421789867,1778160639000,-5242.08,0.00011506,2]
[421789874,1778160639000,-2141.53,0.00011506,2]
[421789904,1778160639000,-500.0,0.00011506,2]
[421789883,1778160639000,-500.0,0.00011506,2]
[421789881,1778160639000,-500.0,0.00011506,2]
[421789893,1778160639000,-396.55,0.00011506,2]
[421789895,1778160639000,-500.0,0.00011506,2]
[421789887,1778160639000,-236.18,0.00011506,2]
[421789899,1778160639000,-500.0,0.00011506,2]
[421789889,1778160639000,-745.8,0.00011506,2]
[421789891,1778160639000,-500.0,0.00011506,2]
[421789900,1778160639000,-500.0,0.00011506,2]
[421789902,1778160639000,-1037.12,0.00011506,2]
[421789906,1778160639000,-500.0,0.00011506,2]
[421789855,1778160639000,-500.0,0.00011506,2]
[421789910,1778160639000,-165.97450524,0.00011547,2]
[421789885,1778160639000,-257.06,0.00011506,2]
[421789843,1778160639000,-500.0,0.00011506,2]
[421789790,1778160639000,-500.0,0.00011232,2]
[421789850,1778160639000,-537.87,0.00011506,2]
[421789908,1778160639000,-500.0,0.00011506,2]
[421789801,1778160639000,-500.0,0.00011232,2]
[421789789,1778160639000,-500.0,0.00011232,2]
[421789797,1778160639000,-500.0,0.00011232,2]
[421789799,1778160639000,-745.8,0.00011232,2]
[421789795,1778160639000,-500.0,0.00011232,2]
[421789803,1778160639000,-500.0,0.00011232,2]
[421789807,1778160639000,-1144.26,0.00011232,2]
[421789793,1778160639000,-500.0,0.00011232,2]
[421789805,1778160639000,-500.0,0.00011232,2]
[421789809,1778160639000,-500.0,0.00011232,2]
[421789811,1778160639000,-500.0,0.00011232,2]
[421789817,1778160639000,-463.47,0.00011232,2]
[421789831,1778160639000,-153.645,0.00011382,2]
[421789833,1778160639000,-154931.6916776,0.000114,2]
[421789829,1778160639000,-12317.62462285,0.00011298,2]
[421789815,1778160639000,-500.0,0.00011232,2]
[421789819,1778160639000,-500.0,0.00011232,2]
[421789827,1778160639000,-442.0,0.00011267,2]
[421789823,1778160639000,-741.0,0.00011267,2]
[421789813,1778160639000,-1037.12,0.00011232,2]
[421789825,1778160639000,-185.0,0.00011267,2]
[421789821,1778160639000,-500.0,0.00011232,2]
[421789835,1778160639000,-600.152,0.00011449,2]
[421789837,1778160639000,-823.0,0.00011485,2]
[421789839,1778160639000,-151.0,0.000115,2]
[421789841,1778160639000,-861.182,0.00011506,2]
[421789847,1778160639000,-529.07472315,0.00011506,2]
[421789845,1778160639000,-500.0,0.00011506,2]
[421789851,1778160639000,-500.0,0.00011506,2]
[421789915,1778160639000,-151.0,0.00011558,2]
[421789897,1778160639000,-1144.26,0.00011506,2]
[421789917,1778160639000,-174.75,0.00011567,2]
[421789983,1778160639000,-500.0,0.0001174,2]
[421789994,1778160639000,-500.0,0.0001174,2]
[421789988,1778160639000,-500.0,0.0001174,2]
[421789991,1778160639000,-500.0,0.0001174,2]
[421789996,1778160639000,-500.0,0.0001174,2]
[421790007,1778160639000,-500.0,0.0001174,2]
[421790008,1778160639000,-500.0,0.0001174,2]
[421790010,1778160639000,-500.0,0.0001174,2]
[421789998,1778160639000,-500.0,0.0001174,2]
[421790005,1778160639000,-500.0,0.0001174,2]
[421790001,1778160639000,-500.0,0.0001174,2]
[421790014,1778160639000,-500.0,0.0001174,2]
[421789999,1778160639000,-500.0,0.0001174,2]
[421789986,1778160639000,-500.0,0.0001174,2]
[421790012,1778160639000,-500.0,0.0001174,2]
[421790017,1778160639000,-500.0,0.0001174,2]
[421790019,1778160639000,-500.0,0.0001174,2]
[421790023,1778160639000,-500.0,0.0001174,2]
[421790030,1778160639000,-500.0,0.0001174,2]
[421790026,1778160639000,-500.0,0.0001174,2]
[421790025,1778160639000,-500.0,0.0001174,2]
[421790021,1778160639000,-500.0,0.0001174,2]
[421790028,1778160639000,-500.0,0.0001174,2]
[421790032,1778160639000,-500.0,0.0001174,2]
[421790036,1778160639000,-500.0,0.0001174,2]
[421790034,1778160639000,-500.0,0.0001174,2]
[421790038,1778160639000,-500.0,0.0001174,2]
[421789921,1778160639000,-181.04,0.00011579,2]
[421790016,1778160639000,-500.0,0.0001174,2]
[421789976,1778160639000,-500.0,0.0001174,2]
[421790003,1778160639000,-500.0,0.0001174,2]
[421789978,1778160639000,-500.0,0.0001174,2]
[421789929,1778160639000,-151.0,0.000117,2]
[421789913,1778160639000,-438.8547648,0.00011558,2]
[421789923,1778160639000,-151.0,0.000116,2]
[421789931,1778160639000,-1000.0,0.00011715,2]
[421789974,1778160639000,-500.0,0.0001174,2]
[421789925,1778160639000,-12789.26674625,0.00011648,2]
[421789932,1778160639000,-500.0,0.0001174,2]
[421789937,1778160639000,-500.0,0.0001174,2]
[421789934,1778160639000,-500.0,0.0001174,2]
[421789918,1778160639000,-177.46,0.00011576,2]
[421789938,1778160639000,-500.0,0.0001174,2]
[421789940,1778160639000,-500.0,0.0001174,2]
[421789948,1778160639000,-500.0,0.0001174,2]
[421789945,1778160639000,-500.0,0.0001174,2]
[421789943,1778160639000,-500.0,0.0001174,2]
[421789927,1778160639000,-151.0,0.000117,2]
[421789954,1778160639000,-500.0,0.0001174,2]
[421789942,1778160639000,-500.0,0.0001174,2]
[421789964,1778160639000,-500.0,0.0001174,2]
[421789980,1778160639000,-500.0,0.0001174,2]
[421789970,1778160639000,-500.0,0.0001174,2]
[421789969,1778160639000,-500.0,0.0001174,2]
[421789966,1778160639000,-500.0,0.0001174,2]
[421789972,1778160639000,-500.0,0.0001174,2]
[421789960,1778160639000,-500.0,0.0001174,2]
[421789958,1778160639000,-500.0,0.0001174,2]
[421789956,1778160639000,-500.0,0.0001174,2]
[421789952,1778160639000,-500.0,0.0001174,2]
[421789951,1778160639000,-500.0,0.0001174,2]
[421789962,1778160639000,-500.0,0.0001174,2]
[421790077,1778160640000,-500.0,0.0001174,2]
[421790051,1778160640000,-500.0,0.0001174,2]
[421790081,1778160640000,-500.0,0.0001174,2]
[421790072,1778160640000,-500.0,0.0001174,2]
[421790074,1778160640000,-500.0,0.0001174,2]
[421790070,1778160640000,-500.0,0.0001174,2]
[421790068,1778160640000,-500.0,0.0001174,2]
[421790055,1778160640000,-500.0,0.0001174,2]
[421790053,1778160640000,-500.0,0.0001174,2]
[421790049,1778160640000,-500.0,0.0001174,2]
[421790047,1778160640000,-500.0,0.0001174,2]
[421790059,1778160640000,-500.0,0.0001174,2]
[421790066,1778160640000,-500.0,0.0001174,2]
[421790061,1778160640000,-500.0,0.0001174,2]
[421790062,1778160640000,-500.0,0.0001174,2]
[421790057,1778160640000,-500.0,0.0001174,2]
[421790045,1778160640000,-500.0,0.0001174,2]
[421790043,1778160640000,-500.0,0.0001174,2]
[421790040,1778160640000,-500.0,0.0001174,2]
[421790042,1778160640000,-500.0,0.0001174,2]
[421790079,1778160640000,-500.0,0.0001174,2]
[421790064,1778160640000,-500.0,0.0001174,2]
[421790085,1778160640000,-500.0,0.0001174,2]
[421790089,1778160640000,-500.0,0.0001174,2]
[421790083,1778160640000,-500.0,0.0001174,2]
[421790135,1778160640000,-500.0,0.0001174,2]
[421790133,1778160640000,-500.0,0.0001174,2]
[421790131,1778160640000,-500.0,0.0001174,2]
[421790130,1778160640000,-500.0,0.0001174,2]
[421790127,1778160640000,-500.0,0.0001174,2]
[421790139,1778160640000,-2303272.90972089,0.0001176,2]
[421790137,1778160640000,-500.0,0.0001174,2]
[421790126,1778160640000,-500.0,0.0001174,2]
[421790172,1778160640000,-2333.18114726,0.0001176,2]
[421790122,1778160640000,-500.0,0.0001174,2]
[421790124,1778160640000,-500.0,0.0001174,2]
[421790116,1778160640000,-500.0,0.0001174,2]
[421790112,1778160640000,-169.07,0.0001174,2]
[421790075,1778160640000,-500.0,0.0001174,2]
[421790114,1778160640000,-500.0,0.0001174,2]
[421790091,1778160640000,-500.0,0.0001174,2]
[421790092,1778160640000,-500.0,0.0001174,2]
[421790087,1778160640000,-500.0,0.0001174,2]
[421790096,1778160640000,-500.0,0.0001174,2]
[421790118,1778160640000,-500.0,0.0001174,2]
[421790120,1778160640000,-500.0,0.0001174,2]
[421790110,1778160640000,-500.0,0.0001174,2]
[421790094,1778160640000,-500.0,0.0001174,2]
[421790338,1778160643000,-2119.25919702,0.0001176,2]
[421790337,1778160643000,-938.14328391,0.0001176,2]
[421790335,1778160643000,-3166.47645286,0.0001176,2]
[421790336,1778160643000,-1275.38190145,0.0001176,2]
[421790361,1778160646000,-500.0,0.00010958,2]
[421790364,1778160646000,-13414.02128927,0.0001176,2]
[421790363,1778160646000,-500.0,0.00011506,2]
[421790365,1778160646000,-37355.04956312,0.0001176,2]
[421790362,1778160646000,-500.0,0.00011232,2]
[421790374,1778161105000,988.23,0.00019178,120]
[421790383,1778161334000,330.62,0.00019178,120]
[421790384,1778161568000,240.0,0.00019178,120]
[421790385,1778161591000,152.5,8.01e-05,2]
[421790718,1778161838000,-600.0,0.000103,2]
[421790723,1778161838000,-156.63354124,0.00010541,2]
[421790720,1778161838000,-500.0,0.00010541,2]
[421790725,1778161838000,-500.0,0.00010541,2]
[421790727,1778161838000,-500.0,0.00010541,2]
[421790729,1778161838000,-500.0,0.00010541,2]
[421790731,1778161838000,-500.0,0.00010541,2]
[421790733,1778161838000,-500.0,0.00010541,2]
[421790743,1778161838000,-500.0,0.00010541,2]
[421790747,1778161838000,-540.89436877,0.00010541,2]
[421790741,1778161838000,-500.0,0.00010541,2]
[421790739,1778161838000,-500.0,0.00010541,2]
[421790745,1778161838000,-500.0,0.00010541,2]
[421790757,1778161838000,-500.0,0.00010957,2]
[421790735,1778161838000,-500.0,0.00010541,2]
[421790753,1778161838000,-100000.0,0.00010542,2]
[421790749,1778161838000,-500.0,0.00010541,2]
[421790751,1778161838000,-500.0,0.00010541,2]
[421790755,1778161838000,-94575.4870011,0.0001055,2]
[421790737,1778161838000,-500.0,0.00010541,2]
[421790716,1778161838000,-300.0,0.00010099,2]
[421790680,1778161838000,-152.0,0.0001,7]
[421790712,1778161838000,-300.0,0.00010099,2]
[421790767,1778161838000,-500.0,0.00010957,2]
[421790672,1778161838000,-500.61714521,8.966e-05,2]
[421790674,1778161838000,-426.93900188,9.012e-05,2]
[421790676,1778161838000,-300.0,9.149e-05,2]
[421790670,1778161838000,-3383.54002383,8.876e-05,2]
[421790678,1778161838000,-152.0,0.0001,7]
[421790682,1778161838000,-288.0,0.00010098,2]
[421790688,1778161838000,-300.0,0.00010099,2]
[421790684,1778161838000,-1200.0,0.00010098,2]
[421790686,1778161838000,-29105.71892135,0.00010099,2]
[421790694,1778161838000,-300.0,0.00010099,2]
[421790690,1778161838000,-300.0,0.00010099,2]
[421790692,1778161838000,-300.0,0.00010099,2]
[421790696,1778161838000,-300.0,0.00010099,2]
[421790698,1778161838000,-300.0,0.00010099,2]
[421790700,1778161838000,-300.0,0.00010099,2]
[421790702,1778161838000,-300.0,0.00010099,2]
[421790704,1778161838000,-300.0,0.00010099,2]
[421790706,1778161838000,-300.0,0.00010099,2]
[421790708,1778161838000,-300.0,0.00010099,2]
[421790710,1778161838000,-300.0,0.00010099,2]
[421790714,1778161838000,-300.0,0.00010099,2]
[421790759,1778161838000,-500.0,0.00010957,2]
[421790793,1778161838000,-500.0,0.00010958,2]
[421790763,1778161838000,-501.61344577,0.00010957,2]
[421790803,1778161838000,-577.48,0.00010958,2]
[421790806,1778161838000,-500.0,0.00010958,2]
[421790809,1778161838000,-500.0,0.00010958,2]
[421790804,1778161838000,-500.0,0.00010958,2]
[421790820,1778161838000,-500.0,0.00010958,2]
[421790801,1778161838000,-1873.84,0.00010958,2]
[421790812,1778161838000,-500.0,0.00010958,2]
[421790807,1778161838000,-652.58,0.00010958,2]
[421790816,1778161838000,-500.0,0.00010958,2]
[421790814,1778161838000,-1001.22,0.00010958,2]
[421790823,1778161838000,-500.0,0.00010958,2]
[421790821,1778161838000,-500.0,0.00010958,2]
[421790836,1778161838000,-886.0,0.00010959,2]
[421790827,1778161838000,-500.0,0.00010958,2]
[421790838,1778161838000,-435.0,0.00010959,2]
[421790825,1778161838000,-500.0,0.00010958,2]
[421790828,1778161838000,-500.0,0.00010958,2]
[421790830,1778161838000,-1413.54514591,0.00010959,2]
[421790840,1778161838000,-11869.38914233,0.00010959,2]
[421790769,1778161838000,-500.0,0.00010957,2]
[421790834,1778161838000,-396.06571176,0.00010959,2]
[421790811,1778161838000,-500.0,0.00010958,2]
[421790818,1778161838000,-907.48,0.00010958,2]
[421790798,1778161838000,-738.92,0.00010958,2]
[421790779,1778161838000,-500.0,0.00010958,2]
[421790771,1778161838000,-171.05369041,0.00010957,2]
[421790765,1778161838000,-500.0,0.00010957,2]
[421790773,1778161838000,-500.0,0.00010957,2]
[421790775,1778161838000,-500.0,0.00010957,2]
[421790761,1778161838000,-500.0,0.00010957,2]
[421790800,1778161838000,-3598.04,0.00010958,2]
[421790777,1778161838000,-500.0,0.00010957,2]
[421790780,1778161838000,-500.0,0.00010958,2]
[421790790,1778161838000,-550.82,0.00010958,2]
[421790778,1778161838000,-619.73758329,0.00010957,2]
[421790782,1778161838000,-500.0,0.00010958,2]
[421790795,1778161838000,-500.0,0.00010958,2]
[421790784,1778161838000,-500.0,0.00010958,2]
[421790797,1778161838000,-1087.8103,0.00010958,2]
[421790783,1778161838000,-500.0,0.00010958,2]
[421790781,1778161838000,-500.0,0.00010958,2]
[421790788,1778161838000,-751.24,0.00010958,2]
[421790786,1778161838000,-500.0,0.00010958,2]
[421790791,1778161838000,-4586.82,0.00010958,2]
[421790787,1778161838000,-576.4,0.00010958,2]
[421790855,1778161839000,-500.0,0.00011232,2]
[421790856,1778161839000,-500.0,0.00011232,2]
[421790845,1778161839000,-529.0,0.00011225,2]
[421790853,1778161839000,-500.0,0.00011232,2]
[421790849,1778161839000,-3172.76660099,0.00011229,2]
[421790844,1778161839000,-755.0,0.00011108,2]
[421790858,1778161839000,-206.87,0.00011232,2]
[421790860,1778161839000,-500.0,0.00011232,2]
[421790851,1778161839000,-1294.82156379,0.00011229,2]
[421790847,1778161839000,-2660.82283545,0.00011229,2]
[421790842,1778161839000,-503.78802222,0.00011012,2]
[421790867,1778161839000,-751.24,0.00011232,2]
[421790864,1778161839000,-500.0,0.00011232,2]
[421790866,1778161839000,-576.4,0.00011232,2]
[421790869,1778161839000,-550.82,0.00011232,2]
[421790871,1778161839000,-4586.82,0.00011232,2]
[421790873,1778161839000,-500.0,0.00011232,2]
[421790874,1778161839000,-500.0,0.00011232,2]
[421790876,1778161839000,-1087.8103,0.00011232,2]
[421790880,1778161839000,-872.03415056,0.00011232,2]
[421790878,1778161839000,-738.92,0.00011232,2]
[421790862,1778161839000,-500.0,0.00011232,2]
[421791064,1778161840000,-2726.00584944,0.00011232,2]
[421791067,1778161840000,-577.48,0.00011232,2]
[421791069,1778161840000,-98.78776073,0.00011232,2]
[421791078,1778161840000,-652.58,0.00011232,2]
[421791066,1778161840000,-1873.84,0.00011232,2]
[421791072,1778161840000,-380.36253887,0.00011232,2]
[421791074,1778161840000,-20.8497004,0.00011232,2]
[421791082,1778161840000,-45.83664661,0.00011232,2]
[421791076,1778161840000,-500.0,0.00011232,2]
[421791080,1778161840000,-500.0,0.00011232,2]
[421791460,1778161843000,-13777.92332609,0.00011329,2]
[421791456,1778161843000,-1098.82016502,0.0001132,2]
[421791454,1778161843000,-647.0,0.0001132,2]
[421791458,1778161843000,-312.17983498,0.0001132,2]
[421791450,1778161843000,-500.0,0.00011232,2]
[421791446,1778161843000,-500.0,0.00011232,2]
[421791444,1778161843000,-500.0,0.00011232,2]
[421791442,1778161843000,-500.0,0.00011232,2]
[421791432,1778161843000,-1001.22,0.00011232,2]
[421791428,1778161843000,-454.16335339,0.00011232,2]
[421791430,1778161843000,-500.0,0.00011232,2]
[421791434,1778161843000,-500.0,0.00011232,2]
[421791440,1778161843000,-500.0,0.00011232,2]
[421791436,1778161843000,-907.48,0.00011232,2]
[421791426,1778161843000,-200.0,0.00011135,2]
[421791424,1778161843000,-500.0,0.00010958,2]
[421791463,1778161843000,-15481.41374173,0.00011429,2]
[421791438,1778161843000,-500.0,0.00011232,2]
[421791462,1778161843000,-720.0,0.0001133,2]
[421791474,1778161843000,-751.24,0.00011506,2]
[421791467,1778161843000,-500.0,0.00011506,2]
[421791492,1778161843000,-652.58,0.00011506,2]
[421791490,1778161843000,-500.0,0.00011506,2]
[421791493,1778161843000,-500.0,0.00011506,2]
[421791488,1778161843000,-500.0,0.00011506,2]
[421791485,1778161843000,-1873.84,0.00011506,2]
[421791483,1778161843000,-3598.04,0.00011506,2]
[421791452,1778161843000,-500.0,0.00011232,2]
[421791480,1778161843000,-1087.8103,0.00011506,2]
[421791487,1778161843000,-577.48,0.00011506,2]
[421791482,1778161843000,-738.92,0.00011506,2]
[421791476,1778161843000,-4586.82,0.00011506,2]
[421791477,1778161843000,-500.0,0.00011506,2]
[421791475,1778161843000,-550.82,0.00011506,2]
[421791472,1778161843000,-500.0,0.00011506,2]
[421791473,1778161843000,-576.4,0.00011506,2]
[421791470,1778161843000,-500.0,0.00011506,2]
[421791468,1778161843000,-516.879,0.00011506,2]
[421791465,1778161843000,-500.0,0.00011506,2]
[421791478,1778161843000,-500.0,0.00011506,2]
[421791497,1778161844000,-377.67,0.00011506,2]
[421791500,1778161844000,-500.0,0.00011506,2]
[421791499,1778161844000,-500.0,0.00011506,2]
[421791498,1778161844000,-907.48,0.00011506,2]
[421791501,1778161844000,-500.0,0.00011506,2]
[421791496,1778161844000,-1001.22,0.00011506,2]
[421791494,1778161844000,-500.0,0.00011506,2]
[421791495,1778161844000,-500.0,0.00011506,2]
[421791504,1778161844000,-500.0,0.00011506,2]
[421791507,1778161844000,-259.14535789,0.00011529,2]
[421791502,1778161844000,-500.0,0.00011506,2]
[421791506,1778161844000,-661.2837972,0.00011529,2]
[421791505,1778161844000,-500.0,0.00011506,2]
[421791503,1778161844000,-500.0,0.00011506,2]
[421791549,1778161846000,-509.56567735,0.000116,2]
[421791548,1778161846000,-11034.82716607,0.000116,2]
[421791547,1778161846000,-200.0,0.00011571,2]
[421791546,1778161846000,-16264.47500239,0.00011529,2]
[421791556,1778161891000,152.5,8.01e-05,2]
[421791570,1778162191000,152.5,8.01e-05,2]
[421791571,1778162194000,152.0,0.0001093,30]
[421791573,1778162221000,152.0,0.00010932,30]
[421791580,1778162334000,152.0,0.00010932,30]
[421791582,1778162491000,152.5,8.01e-05,2]
[421791602,1778162791000,152.5,8.01e-05,2]
[421791671,1778163032000,-300.0,0.00010099,2]
[421791668,1778163032000,-5657.16420682,0.00010099,2]
[421791681,1778163032000,-300.0,0.00010099,2]
[421791670,1778163032000,-300.0,0.00010099,2]
[421791658,1778163032000,-16.95348002,9.695e-05,2]
[421791647,1778163032000,-412.88000221,9.55e-05,2]
[421791666,1778163032000,-300.0,0.00010098,2]
[421791664,1778163032000,-1200.0,0.00010098,2]
[421791661,1778163032000,-300.0,0.00010098,2]
[421791651,1778163032000,-283.04651998,9.695e-05,2]
[421791680,1778163032000,-300.0,0.00010099,2]
[421791660,1778163032000,-300.0,0.00010098,2]
[421791682,1778163032000,-300.0,0.00010099,2]
[421791649,1778163032000,-424.85365264,9.646e-05,2]
[421791674,1778163032000,-300.0,0.00010099,2]
[421791676,1778163032000,-300.0,0.00010099,2]
[421791677,1778163032000,-300.0,0.00010099,2]
[421791673,1778163032000,-300.0,0.00010099,2]
[421791679,1778163032000,-273.60048451,0.00010099,2]
[421791678,1778163032000,-26.39951549,0.00010099,2]
[421791683,1778163032000,-300.0,0.00010099,2]
[421791684,1778163032000,-300.0,0.00010099,2]
[421791685,1778163032000,-300.0,0.00010099,2]
[421791686,1778163032000,-300.0,0.00010099,2]
[421791687,1778163032000,-600.0,0.000103,2]
[421791688,1778163032000,-500.0,0.00010684,2]
[421791689,1778163032000,-140.54605613,0.00010684,2]
[421791672,1778163032000,-300.0,0.00010099,2]
[421791768,1778163038000,-500.0,0.00010684,2]
[421791774,1778163038000,-500.0,0.00010684,2]
[421791764,1778163038000,-359.45394387,0.00010684,2]
[421791772,1778163038000,-500.0,0.00010684,2]
[421791766,1778163038000,-500.0,0.00010684,2]
[421791776,1778163038000,-414.27908867,0.00010684,2]
[421791770,1778163038000,-500.0,0.00010684,2]
[421791829,1778163039000,-500.0,0.00010684,2]